[Event "BL 2024-25"]
[Site "Austria"]
[Date "2024.10.10"]
[Round "2.27"]
[White "Samunenkov, Ihor"]
[Black "Votava, Jan"]
[Result "1/2-1/2"]
[ECO "E17"]
[WhiteElo "2533"]
[BlackElo "2441"]
[Annotator "RC"]
[PlyCount "90"]
[EventDate "2024.08.28"]
[EventType "team-tourn"]
[EventCountry "AUT"]
[SourceTitle "playchess.com"]
[Source "ChessBase"]
[SourceQuality "1"]
[WhiteTeam "Fuerstenfeld-Hartberg"]
[BlackTeam "Mayrhofen-Zell-Ziller"]
[TimeControl "40/5400+30:1800+30"]

1. Nf3 Nf6 2. c4 e6 3. g3 b6 4. Bg2 Bb7 5. O-O Be7 6. Nc3 O-O 7. Re1 d5 8. cxd5 exd5 9. d4 c5 10. Bf4 Nbd7 11. Rc1 Ne4 12. dxc5 Nxc3 13. Rxc3 bxc5 14. h4 a5 15. Rc2 Qb6 16. e4 d4 17. Nd2 a4 18. Bh3 Qd8 19. Bf1 Nb6 20. Bd3 Ba6 21. Qf3 Qc8 22. Rec1 Qe6 23. Bc7 Nd7 24. Nc4 Ra7 25. Bf4 Rb7 26. h5 Rb4 27. Qe2 f6 28. Na5 Bxd3 29. Qxd3 Ra8 30. Nc4 Nb6 31. Qe2 Nxc4 32. Rxc4 Rxc4 33. Qxc4 Kf7 34. Kf1 Ra6 35. Rc2 Rb6 36. Bc1 Rb4 37. Qd5 Qxd5 38. exd5 d3 39. Rc3 d2 40. Bxd2 Rxb2 41. Be3 Rxa2 42. Bxc5 Rd2 43. Bxe7 Kxe7 44. Rc7+ Kd6 45. Ra7 Rxd5 1/2-1/2

[Event "BL 2024-25"]
[Site "Austria"]
[Date "2024.10.10"]
[Round "2.28"]
[White "Maiwald, Jens-Uwe"]
[Black "Korpa, Bence"]
[Result "0-1"]
[ECO "C02"]
[WhiteElo "2429"]
[BlackElo "2550"]
[Annotator "RC"]
[PlyCount "88"]
[EventDate "2024.08.28"]
[EventType "team-tourn"]
[EventCountry "AUT"]
[SourceTitle "playchess.com"]
[Source "ChessBase"]
[SourceQuality "1"]
[WhiteTeam "Mayrhofen-Zell-Ziller"]
[BlackTeam "Fuerstenfeld-Hartberg"]
[TimeControl "40/5400+30:1800+30"]

1. e4 {[%emt 0:00:05]} e6 {[%emt 0:00:10]} 2. d4 {[%emt 0:00:35]} d5 {[%emt 0:00:10]} 3. e5 {[%emt 0:00:06]} c5 {[%emt 0:00:35]} 4. c3 {[%emt 0:00:07]} Nc6 {[%emt 0:00:16]} 5. Nf3 {[%emt 0:00:10]} Qb6 {[%emt 0:00:56]} 6. a3 {[%emt 0:01:13]} c4 {[%emt 0:00:16]} 7. Be2 {[%emt 0:00:46]} Na5 {[%emt 0:00:33]} 8. Nbd2 {[%emt 0:00:09]} Bd7 {[%emt 0:00:26]} 9. h4 {[%emt 0:01:08]} Ne7 {[%emt 0:00:46]} 10. h5 {[%emt 0:00:12]} h6 {[%emt 0:01:08]} 11. Rb1 {[%emt 0:01:06]} O-O-O {[%emt 0:03:14]} 12. Nf1 {[%emt 0:02:14]} Nec6 {[%emt 0:17:41]} 13. Bf4 {[%emt 0:02:03]} Be7 {[%emt 0:00:42]} 14. Ne3 {[%emt 0:02:30]} Nb3 {[%emt 0:10:01]} 15. Bg3 {[%emt 0:08:07]} Qc7 {[%emt 0:07:29]} 16. O-O {[%emt 0:11:18]} b5 {[%emt 0:00:24]} 17. Nd2 {[%emt 0:05:17]} Nxd2 {[%emt 0:08:15]} 18. Qxd2 {[%emt 0:00:07]} Qb6 {[%emt 0:05:01]} 19. b3 {[%emt 0:12:00]} cxb3 {[%emt 0:06:59]} 20. Rxb3 {[%emt 0:00:42]} Na5 {[%emt 0:00:07]} 21. Rbb1 {[%emt 0:00:18]} Bc6 {[%emt 0:23:16]} 22. a4 {[%emt 0:03:21]} a6 {[%emt 0:00:08]} 23. axb5 {[%emt 0:01:54]} axb5 {[%emt 0:00:26]} 24. Rb2 {[%emt 0:02:29]} Rd7 {[%emt 0:09:08]} 25. Rfb1 {[%emt 0:05:02]} Rb7 {[%emt 0:01:26]} 26. Bd3 {[%emt 0:06:08]} Kd7 {[%emt 0:03:57]} 27. c4 {[%emt 0:17:26]} dxc4 {[%emt 0:00:00]} 28. d5 {[%emt 0:00:24]} exd5 {[%emt 0:00:22]} 29. Nxd5 {[%emt 0:02:55]} Qc5 {[%emt 0:00:08]} 30. Bf5+ {[%emt 0:10:39]} Ke8 {[%emt 0:00:04]} 31. Nxe7 {[%emt 0:02:39]} c3 {[%emt 0:00:36]} 32. Qc2 {[%emt 0:01:34]} Kxe7 {[%emt 0:01:50]} 33. Rb4 Ra8 {[%emt 0:00:00]} 34. e6 {[%emt 0:02:04]} fxe6 {[%emt 0:00:10]} 35. Bh3 {[%emt 0:00:17]} Kf8 {[%emt 0:01:20]} 36. Qh7 e5 {[%emt 0:00:00]} 37. Be6 {[%emt 0:01:07]} c2 {[%emt 0:00:22]} 38. Bh4 {[%emt 0:00:21]} g5 {[%emt 0:00:35]} 39. Qxh6+ {[%emt 0:00:53]} Ke8 {[%emt 0:00:23]} 40. Qg6+ {[%emt 0:00:30]} Kd8 {[%emt 0:00:30]} 41. Bxg5+ {[%emt 0:30:30]} Kc7 {[%emt 0:30:30]} 42. Ra1 {[%emt 0:00:30]} Qxb4 {[%emt 0:00:30]} 43. Bf5 {[%emt 0:00:30]} Qd4 {[%emt 0:00:30]} 44. Rc1 {[%emt 0:00:30]} Qd5 {[%emt 0:00:30]} 0-1

[Event "BL 2024-25"]
[Site "Austria"]
[Date "2024.10.10"]
[Round "2.29"]
[White "Gschnitzer, Adrian"]
[Black "Platzgummer, Fabian"]
[Result "1/2-1/2"]
[ECO "E24"]
[WhiteElo "2449"]
[BlackElo "2301"]
[Annotator "RC"]
[PlyCount "116"]
[EventDate "2024.08.28"]
[EventType "team-tourn"]
[EventCountry "AUT"]
[SourceTitle "playchess.com"]
[Source "ChessBase"]
[SourceQuality "1"]
[WhiteTeam "Fuerstenfeld-Hartberg"]
[BlackTeam "Mayrhofen-Zell-Ziller"]
[TimeControl "40/5400+30:1800+30"]

1. d4 {[%emt 0:00:08]} Nf6 {[%emt 0:01:26]} 2. c4 {[%emt 0:00:15]} e6 {[%emt 0:00:23]} 3. Nc3 {[%emt 0:00:20]} Bb4 {[%emt 0:01:44]} 4. a3 {[%emt 0:00:12]} Bxc3+ {[%emt 0:00:14]} 5. bxc3 {[%emt 0:00:07]} Nc6 {[%emt 0:02:04]} 6. f3 {[%emt 0:01:52]} b6 {[%emt 0:14:27]} 7. e4 {[%emt 0:02:37]} d6 {[%emt 0:09:32]} 8. Bg5 {[%emt 0:08:56]} h6 {[%emt 0:01:39]} 9. Bh4 {[%emt 0:00:22]} g5 {[%emt 0:01:03]} 10. Bf2 {[%emt 0:00:13]} Nh5 {[%emt 0:02:04]} 11. h4 {[%emt 0:01:38]} Qf6 {[%emt 0:01:12]} 12. g3 {[%emt 0:09:26]} Qg7 {[%emt 0:09:17]} 13. hxg5 {[%emt 0:14:14]} hxg5 {[%emt 0:00:39]} 14. f4 {[%emt 0:06:19]} g4 {[%emt 0:09:30]} 15. e5 {[%emt 0:12:40]} Bb7 {[%emt 0:14:45]} 16. Rh4 {[%emt 0:00:25]} f5 {[%emt 0:08:51]} 17. d5 {[%emt 0:00:31]} Na5 {[%emt 0:07:49]} 18. Qa4+ {[%emt 0:17:25]} Qd7 {[%emt 0:04:14]} 19. Qxd7+ {[%emt 0:00:08]} Kxd7 {[%emt 0:00:01]} 20. O-O-O {[%emt 0:01:18]} dxe5 {[%emt 0:02:26]} 21. fxe5 {[%emt 0:00:27]} Ng7 {[%emt 0:00:25]} 22. dxe6+ {[%emt 0:04:03]} Kxe6 {[%emt 0:00:32]} 23. Ne2 {[%emt 0:00:05]} Rxh4 {[%emt 0:02:53]} 24. Nf4+ {[%emt 0:00:27]} Ke7 {[%emt 0:00:26]} 25. gxh4 {[%emt 0:00:29]} Bf3 {[%emt 0:01:25]} 26. Re1 {[%emt 0:06:29]} Ne6 {[%emt 0:00:34]} 27. Nd5+ {[%emt 0:04:38]} Kf7 {[%emt 0:00:10]} 28. Bd3 {[%emt 0:00:41]} c6 {[%emt 0:01:21]} 29. Nf6 {[%emt 0:00:32]} f4 {[%emt 0:00:21]} 30. h5 {[%emt 0:01:56]} g3 {[%emt 0:00:22]} 31. Bg1 {[%emt 0:00:00]} Rd8 {[%emt 0:02:05]} 32. Bg6+ {[%emt 0:00:02]} Ke7 {[%emt 0:00:06]} 33. h6 {[%emt 0:00:50]} Bg2 {[%emt 0:01:23]} 34. h7 {[%emt 0:00:50]} Rh8 {[%emt 0:00:11]} 35. Rd1 {[%emt 0:01:35]} Nf8 {[%emt 0:00:11]} 36. Bf5 {[%emt 0:02:14]} Nxc4 {[%emt 0:01:02]} 37. Ng8+ {[%emt 0:00:27]} Ke8 {[%emt 0:00:24]} 38. e6 {[%emt 0:01:11]} Rxh7 {[%emt 0:01:33]} 39. Bxh7 {[%emt 0:01:35]} Nxe6 {[%emt 0:00:07]} 40. Be4 {[%emt 0:02:15]} Bxe4 {[%emt 0:00:45]} 41. Nf6+ {[%emt 0:30:35]} Kf7 {[%emt 0:30:03]} 42. Nxe4 {[%emt 0:00:16]} Kg6 {[%emt 0:00:19]} 43. Nd6 {[%emt 0:00:00]} Nxa3 {[%emt 0:00:00]} 44. Kd2 {[%emt 0:00:00]} Nb5 {[%emt 0:00:00]} 45. Nxb5 {[%emt 0:00:00]} cxb5 {[%emt 0:00:00]} 46. Ra1 {[%emt 0:00:00]} Ng5 {[%emt 0:00:00]} 47. Bd4 {[%emt 0:00:00]} Kf5 {[%emt 0:00:00]} 48. Rxa7 {[%emt 0:00:00]} Ke4 {[%emt 0:00:00]} 49. Bxb6 {[%emt 0:00:00]} Kf3 {[%emt 0:00:00]} 50. Rg7 {[%emt 0:00:51]} Ne4+ {[%emt 0:00:00]} 51. Kd3 {[%emt 0:00:01]} Nf2+ {[%emt 0:00:00]} 52. Kd4 {[%emt 0:00:38]} g2 {[%emt 0:03:12]} 53. Kc5 {[%emt 0:02:02]} Nd1 {[%emt 0:00:39]} 54. Kb4 {[%emt 0:00:56]} Ne3 {[%emt 0:00:14]} 55. Kxb5 {[%emt 0:00:48]} Kf2 {[%emt 0:00:05]} 56. c4 {[%emt 0:01:13]} g1=Q {[%emt 0:00:06]} 57. Rxg1 {[%emt 0:00:07]} Kxg1 {[%emt 0:00:04]} 58. c5 {[%emt 0:01:34]} Nd5 {[%emt 0:00:37]} 1/2-1/2

[Event "BL 2024-25"]
[Site "Austria"]
[Date "2024.10.10"]
[Round "2.30"]
[White "Schiestl, Josef"]
[Black "Freitag, Manfred"]
[Result "1/2-1/2"]
[ECO "C24"]
[WhiteElo "2071"]
[BlackElo "2340"]
[Annotator "RC"]
[PlyCount "79"]
[EventDate "2024.08.28"]
[EventType "team-tourn"]
[EventCountry "AUT"]
[SourceTitle "playchess.com"]
[Source "ChessBase"]
[SourceQuality "1"]
[WhiteTeam "Mayrhofen-Zell-Ziller"]
[BlackTeam "Fuerstenfeld-Hartberg"]
[TimeControl "40/5400+30:1800+30"]

1. e4 {[%emt 0:00:03]} e5 {[%emt 0:00:46]} 2. Bc4 {[%emt 0:00:21]} Nf6 {[%emt 0:00:10]} 3. d3 {[%emt 0:00:11]} c6 {[%emt 0:00:45]} 4. Nf3 {[%emt 0:00:24]} d5 {[%emt 0:00:06]} 5. Bb3 {[%emt 0:00:22]} a5 {[%emt 0:00:12]} 6. a3 {[%emt 0:08:11]} a4 {[%emt 0:01:05]} 7. Ba2 {[%emt 0:00:05]} Bd6 {[%emt 0:00:04]} 8. Nc3 {[%emt 0:03:05]} d4 {[%emt 0:00:33]} 9. Ne2 {[%emt 0:00:37]} c5 {[%emt 0:01:10]} 10. O-O {[%emt 0:01:42]} Nc6 {[%emt 0:00:08]} 11. h3 {[%emt 0:17:47]} O-O {[%emt 0:00:51]} 12. Ng3 {[%emt 0:00:49]} Be6 {[%emt 0:00:05]} 13. Ng5 {[%emt 0:19:25]} Bxa2 {[%emt 0:00:18]} 14. Rxa2 {[%emt 0:00:01]} g6 {[%emt 0:03:58]} 15. Nf3 {[%emt 0:01:14]} Qd7 {[%emt 0:17:18]} 16. Bg5 {[%emt 0:01:20]} Qe6 {[%emt 0:02:33]} 17. Ra1 {[%emt 0:00:05]} Kh8 {[%emt 0:03:13]} 18. Nh2 {[%emt 0:05:44]} Ng8 {[%emt 0:01:12]} 19. f4 {[%emt 0:05:44]} exf4 {[%emt 0:11:18]} 20. Bxf4 {[%emt 0:00:40]} Nge7 {[%emt 0:07:24]} 21. Qd2 {[%emt 0:02:33]} Ne5 {[%emt 0:03:46]} 22. Nf3 {[%emt 0:02:10]} N7c6 {[%emt 0:00:10]} 23. Nxe5 {[%emt 0:09:05]} Nxe5 {[%emt 0:00:40]} 24. Rae1 {[%emt 0:01:38]} Ra6 {[%emt 0:09:09]} 25. Bh6 {[%emt 0:03:50]} Rg8 {[%emt 0:02:06]} 26. Ne2 {[%emt 0:00:56]} Nd7 {[%emt 0:02:19]} 27. Bf4 {[%emt 0:01:56]} Be7 {[%emt 0:01:04]} 28. Bg5 {[%emt 0:03:27]} f6 {[%emt 0:11:39]} 29. Bh4 {[%emt 0:02:06]} Bd6 {[%emt 0:01:47]} 30. Bg3 {[%emt 0:00:42]} Bxg3 {[%emt 0:00:31]} 31. Nxg3 {[%emt 0:00:01]} Rb6 {[%emt 0:00:42]} 32. Rb1 {[%emt 0:01:30]} Qe5 {[%emt 0:04:02]} 33. Ne2 {[%emt 0:00:48]} Re8 {[%emt 0:01:19]} 34. Rf2 {[%emt 0:01:38]} c4 {[%emt 0:01:40]} 35. dxc4 {[%emt 0:07:50]} Nc5 36. Qxd4 {[%emt 0:00:00]} Qxd4 {[%emt 0:01:36]} 37. Nxd4 {[%emt 0:00:00]} Nxe4 {[%emt 0:00:06]} 38. Re2 {[%emt 0:00:00]} Re5 {[%emt 0:00:49]} 39. Nb5 {[%emt 0:00:00]} f5 {[%emt 0:00:20]} 40. Rd1 {[%emt 0:00:00]} 1/2-1/2

[Event "BL 2024-25"]
[Site "Austria"]
[Date "2024.10.10"]
[Round "2.31"]
[White "Deuer, Marius"]
[Black "Kadric, Denis"]
[Result "1/2-1/2"]
[ECO "E60"]
[WhiteElo "2477"]
[BlackElo "2558"]
[Annotator "RC"]
[PlyCount "61"]
[EventDate "2024.08.28"]
[EventType "team-tourn"]
[EventCountry "AUT"]
[SourceTitle "playchess.com"]
[Source "ChessBase"]
[SourceQuality "1"]
[WhiteTeam "Salzburg"]
[BlackTeam "Pinggau-Friedberg"]
[TimeControl "40/5400+30:1800+30"]

1. d4 {[%emt 0:00:03]} d6 {[%emt 0:00:05]} 2. Nf3 {[%emt 0:00:05]} Nf6 {[%emt 0:00:31]} 3. c4 {[%emt 0:00:07]} g6 {[%emt 0:00:04]} 4. Nc3 {[%emt 0:00:08]} Bg7 {[%emt 0:00:02]} 5. g3 {[%emt 0:00:06]} Bf5 {[%emt 0:00:17]} 6. Bg2 {[%emt 0:00:12]} Qc8 {[%emt 0:00:06]} 7. O-O {[%emt 0:00:15]} O-O {[%emt 0:00:02]} 8. Re1 {[%emt 0:00:12]} a5 {[%emt 0:00:03]} 9. Bf4 {[%emt 0:00:17]} Nc6 {[%emt 0:01:38]} 10. d5 {[%emt 0:11:40]} Nb4 {[%emt 0:00:39]} 11. Nd4 {[%emt 0:15:42]} Bd7 {[%emt 0:01:56]} 12. e4 {[%emt 0:05:57]} e5 {[%emt 0:01:39]} 13. dxe6 {[%emt 0:00:08]} fxe6 {[%emt 0:00:02]} 14. Ndb5 {[%emt 0:09:27]} e5 {[%emt 0:04:32]} 15. Bg5 {[%emt 0:01:12]} h6 {[%emt 0:00:16]} 16. Bc1 {[%emt 0:07:48]} Rf7 {[%emt 0:12:30]} 17. a3 {[%emt 0:04:28]} Na6 {[%emt 0:02:03]} 18. f3 {[%emt 0:03:26]} Qb8 {[%emt 0:04:50]} 19. Be3 {[%emt 0:03:03]} Ne8 {[%emt 0:10:22]} 20. Na4 {[%emt 0:04:35]} Be6 {[%emt 0:03:13]} 21. Qe2 {[%emt 0:01:51]} b6 {[%emt 0:01:01]} 22. Nbc3 {[%emt 0:06:35]} Nc5 {[%emt 0:01:37]} 23. f4 {[%emt 0:01:38]} Kh7 {[%emt 0:22:54]} 24. Rf1 {[%emt 0:02:13]} exf4 {[%emt 0:11:00]} 25. gxf4 {[%emt 0:05:13]} Nxa4 {[%emt 0:05:30]} 26. Nxa4 {[%emt 0:00:06]} Nf6 {[%emt 0:00:50]} 27. f5 {[%emt 0:03:08]} gxf5 {[%emt 0:01:27]} 28. exf5 {[%emt 0:00:06]} Bd7 {[%emt 0:00:01]} 29. Nc3 {[%emt 0:00:13]} Qf8 {[%emt 0:04:24]} 30. Bxa8 {[%emt 0:01:36]} Qxa8 {[%emt 0:00:01]} 31. Qg2 {[%emt 0:00:07]} 1/2-1/2

[Event "BL 2024-25"]
[Site "Austria"]
[Date "2024.10.10"]
[Round "2.32"]
[White "Petrov, Nikita"]
[Black "Rosner, Jonas"]
[Result "1-0"]
[ECO "D45"]
[WhiteElo "2589"]
[BlackElo "2434"]
[Annotator "RC"]
[PlyCount "69"]
[EventDate "2024.08.28"]
[EventType "team-tourn"]
[EventCountry "AUT"]
[SourceTitle "playchess.com"]
[Source "ChessBase"]
[SourceQuality "1"]
[WhiteTeam "Pinggau-Friedberg"]
[BlackTeam "Salzburg"]
[TimeControl "40/5400+30:1800+30"]

1. Nf3 {[%emt 0:00:04]} d5 {[%emt 0:00:12]} 2. e3 {[%emt 0:00:44]} Nf6 {[%emt 0:00:41]} 3. c4 {[%emt 0:00:16]} c6 {[%emt 0:00:18]} 4. Nc3 {[%emt 0:01:40]} e6 {[%emt 0:00:44]} 5. d4 {[%emt 0:00:37]} Nbd7 {[%emt 0:00:47]} 6. Be2 {[%emt 0:00:43]} Bd6 {[%emt 0:01:00]} 7. O-O {[%emt 0:01:56]} O-O {[%emt 0:01:29]} 8. a4 {[%emt 0:00:27]} a5 {[%emt 0:11:13]} 9. b3 {[%emt 0:00:51]} b6 {[%emt 0:01:51]} 10. Bb2 {[%emt 0:01:13]} Bb7 {[%emt 0:00:52]} 11. Qc2 {[%emt 0:02:39]} Rc8 {[%emt 0:03:56]} 12. Rad1 {[%emt 0:18:59]} Qe7 {[%emt 0:03:40]} 13. e4 {[%emt 0:01:56]} Nxe4 {[%emt 0:00:57]} 14. Nxe4 {[%emt 0:00:08]} dxe4 {[%emt 0:00:05]} 15. Qxe4 {[%emt 0:00:05]} Nf6 {[%emt 0:02:55]} 16. Qh4 {[%emt 0:02:29]} h6 {[%emt 0:03:47]} 17. Bd3 {[%emt 0:05:05]} Bb4 {[%emt 0:02:56]} 18. g4 {[%emt 0:10:43]} c5 {[%emt 0:08:58]} 19. d5 {[%emt 0:02:47]} exd5 {[%emt 0:01:35]} 20. g5 {[%emt 0:04:06]} Ne4 {[%emt 0:12:53]} 21. Bxg7 {[%emt 0:02:44]} Nxg5 {[%emt 0:06:56]} 22. Qxh6 {[%emt 0:01:05]} Nxf3+ {[%emt 0:00:31]} 23. Kh1 {[%emt 0:00:03]} f5 {[%emt 0:00:27]} 24. Bxf8 {[%emt 0:01:38]} Qxf8 {[%emt 0:05:53]} 25. Rg1+ {[%emt 0:01:25]} Nxg1 {[%emt 0:04:20]} 26. Rxg1+ {[%emt 0:00:05]} Kf7 {[%emt 0:00:06]} 27. Qh7+ {[%emt 0:00:15]} Kf6 {[%emt 0:04:00]} 28. Qxb7 {[%emt 0:02:15]} dxc4 {[%emt 0:04:06]} 29. Bxc4 {[%emt 0:09:28]} Rd8 {[%emt 0:01:11]} 30. f4 {[%emt 0:03:55]} Rd4 {[%emt 0:06:39]} 31. Bd5 {[%emt 0:01:31]} Rxf4 {[%emt 0:02:30]} 32. Qc6+ {[%emt 0:00:13]} Ke5 {[%emt 0:00:19]} 33. Qe6+ {[%emt 0:00:07]} Kd4 {[%emt 0:00:05]} 34. Rd1+ {[%emt 0:00:04]} Kc3 {[%emt 0:00:20]} 35. Qe3+ {[%emt 0:00:05]} 1-0

[Event "BL 2024-25"]
[Site "Austria"]
[Date "2024.10.10"]
[Round "2.33"]
[White "Hacker, Jonas"]
[Black "Erdos, Viktor"]
[Result "1/2-1/2"]
[ECO "C84"]
[WhiteElo "2385"]
[BlackElo "2538"]
[Annotator "RC"]
[PlyCount "63"]
[EventDate "2024.08.28"]
[EventType "team-tourn"]
[EventCountry "AUT"]
[SourceTitle "playchess.com"]
[Source "ChessBase"]
[SourceQuality "1"]
[WhiteTeam "Salzburg"]
[BlackTeam "Pinggau-Friedberg"]
[TimeControl "40/5400+30:1800+30"]

1. e4 {[%emt 0:00:04]} e5 {[%emt 0:00:13]} 2. Nf3 {[%emt 0:00:06]} Nc6 {[%emt 0:03:29]} 3. Bb5 {[%emt 0:00:10]} a6 {[%emt 0:01:48]} 4. Ba4 {[%emt 0:00:07]} Nf6 {[%emt 0:00:13]} 5. d3 {[%emt 0:00:19]} d6 {[%emt 0:07:41]} 6. c3 {[%emt 0:01:44]} Be7 {[%emt 0:03:50]} 7. O-O {[%emt 0:02:07]} O-O {[%emt 0:00:32]} 8. Re1 {[%emt 0:04:28]} Re8 {[%emt 0:01:19]} 9. h3 {[%emt 0:05:05]} Bf8 {[%emt 0:03:46]} 10. Nbd2 {[%emt 0:04:26]} d5 {[%emt 0:13:51]} 11. exd5 {[%emt 0:07:31]} Qxd5 {[%emt 0:01:07]} 12. Qe2 {[%emt 0:09:45]} h6 {[%emt 0:11:18]} 13. Ne4 {[%emt 0:09:31]} Nxe4 {[%emt 0:01:10]} 14. dxe4 {[%emt 0:02:24]} Qd6 {[%emt 0:03:10]} 15. b4 {[%emt 0:10:35]} Qf6 {[%emt 0:04:22]} 16. Bd2 {[%emt 0:03:24]} Be6 {[%emt 0:13:38]} 17. Bb3 {[%emt 0:03:18]} Rad8 {[%emt 0:04:10]} 18. Red1 {[%emt 0:01:54]} Rd7 {[%emt 0:04:28]} 19. Be3 {[%emt 0:01:44]} Red8 {[%emt 0:00:05]} 20. Rxd7 {[%emt 0:01:07]} Rxd7 {[%emt 0:00:04]} 21. Rd1 {[%emt 0:01:00]} Rxd1+ {[%emt 0:05:28]} 22. Qxd1 {[%emt 0:00:26]} Qg6 {[%emt 0:00:35]} 23. Bxe6 {[%emt 0:04:22]} Qxe6 {[%emt 0:00:04]} 24. Qb3 {[%emt 0:08:21]} Qxb3 {[%emt 0:00:57]} 25. axb3 {[%emt 0:00:01]} f6 {[%emt 0:00:07]} 26. g4 {[%emt 0:01:57]} b5 {[%emt 0:01:32]} 27. Kf1 {[%emt 0:02:06]} Kf7 {[%emt 0:01:41]} 28. Ke2 {[%emt 0:00:43]} Ke6 {[%emt 0:00:13]} 29. Kd3 {[%emt 0:01:41]} a5 {[%emt 0:00:27]} 30. bxa5 {[%emt 0:00:35]} Nxa5 {[%emt 0:00:05]} 31. Kc2 {[%emt 0:06:04]} Nb7 {[%emt 0:03:35]} 32. Nh4 {[%emt 0:01:20]} 1/2-1/2

[Event "BL 2024-25"]
[Site "Austria"]
[Date "2024.10.10"]
[Round "2.34"]
[White "Sankalp Gupta"]
[Black "Goldbeck, Lars"]
[Result "1/2-1/2"]
[ECO "B11"]
[WhiteElo "2534"]
[BlackElo "2372"]
[Annotator "RC"]
[PlyCount "73"]
[EventDate "2024.08.28"]
[EventType "team-tourn"]
[EventCountry "AUT"]
[SourceTitle "playchess.com"]
[Source "ChessBase"]
[SourceQuality "1"]
[WhiteTeam "Pinggau-Friedberg"]
[BlackTeam "Salzburg"]
[TimeControl "40/5400+30:1800+30"]

1. e4 {[%emt 0:00:10]} c6 {[%emt 0:00:08]} 2. Nf3 {[%emt 0:00:05]} d5 {[%emt 0:00:17]} 3. Nc3 {[%emt 0:00:02]} dxe4 {[%emt 0:00:15]} 4. Nxe4 {[%emt 0:00:02]} Nf6 {[%emt 0:00:11]} 5. Qe2 {[%emt 1:32:41]} Nxe4 {[%emt 0:00:10]} 6. Qxe4 {[%emt 0:00:00]} Qa5 {[%emt 0:00:12]} 7. b3 {[%emt 0:00:00]} Bf5 {[%emt 0:10:30]} 8. Qe3 {[%emt 0:00:00]} Bxc2 {[%emt 0:13:10]} 9. Bb2 {[%emt 0:00:00]} Bg6 {[%emt 0:06:33]} 10. h4 {[%emt 0:00:00]} h5 {[%emt 0:25:56]} 11. Bc4 {[%emt 0:00:00]} Nd7 {[%emt 0:03:28]} 12. Ng5 {[%emt 0:00:00]} Nb6 {[%emt 0:04:05]} 13. O-O {[%emt 0:00:00]} Nxc4 {[%emt 0:01:14]} 14. bxc4 {[%emt 0:00:00]} O-O-O {[%emt 0:00:39]} 15. Bc3 {[%emt 0:00:00]} Qb6 {[%emt 0:02:10]} 16. Qf4 {[%emt 0:00:00]} e5 {[%emt 0:04:00]} 17. Qxe5 {[%emt 0:00:00]} Bc5 {[%emt 0:05:42]} 18. Qxg7 {[%emt 0:00:00]} Bd4 {[%emt 0:00:23]} 19. Bxd4 {[%emt 0:00:00]} Qxd4 {[%emt 0:00:02]} 20. Qxd4 {[%emt 0:00:00]} Rxd4 {[%emt 0:00:02]} 21. Rfe1 {[%emt 0:00:00]} Rxd2 {[%emt 0:04:14]} 22. Re7 {[%emt 0:00:00]} Rd7 {[%emt 0:04:12]} 23. Rae1 {[%emt 0:00:00]} Rhd8 {[%emt 0:03:43]} 24. f3 {[%emt 0:00:00]} f6 {[%emt 0:04:06]} 25. Rxd7 {[%emt 0:00:00]} Rxd7 {[%emt 0:00:21]} 26. Ne4 {[%emt 0:00:00]} Rd4 {[%emt 0:00:46]} 27. Nxf6 {[%emt 0:00:00]} Rxc4 {[%emt 0:01:57]} 28. g4 {[%emt 0:00:00]} Rf4 {[%emt 0:01:05]} 29. Nxh5 {[%emt 0:00:00]} Bxh5 {[%emt 0:01:23]} 30. gxh5 {[%emt 0:00:00]} Kd7 {[%emt 0:01:53]} 31. Kg2 {[%emt 0:00:00]} Rxh4 {[%emt 0:00:52]} 32. Re5 {[%emt 0:02:56]} Kd6 {[%emt 0:00:31]} 33. Rg5 {[%emt 0:00:02]} c5 {[%emt 0:00:15]} 34. Kg3 {[%emt 0:00:01]} Rh1 {[%emt 0:00:13]} 35. Kg2 {[%emt 0:00:17]} Rh4 {[%emt 0:00:07]} 36. Kg3 {[%emt 0:00:02]} Rh1 {[%emt 0:00:06]} 37. Kg2 {[%emt 0:00:12]} 1/2-1/2